fUSD/lending_fUSD_20260514
["ID","MTS","AMOUNT","RATE_DAILY","PERIOD"]
[422213790,1778710232000,-1564.62421589,0.00013407,2]
[422213848,1778710238000,-155.86,0.0001356,2]
[422213849,1778710238000,-165.65,0.00013574,2]
[422213852,1778710238000,-500.0,0.00013612,2]
[422213850,1778710238000,-3452.19016171,0.00013586,2]
[422213851,1778710238000,-171.38078984,0.00013586,2]
[422213858,1778710238000,-500.0,0.00013698,2]
[422213856,1778710238000,-500.0,0.00013698,2]
[422213855,1778710238000,-500.0,0.00013698,2]
[422213857,1778710238000,-500.0,0.00013698,2]
[422213861,1778710238000,-500.0,0.00013698,2]
[422213860,1778710238000,-500.0,0.00013698,2]
[422213846,1778710238000,-357.87,0.00013522,2]
[422213854,1778710238000,-500.0,0.00013698,2]
[422213847,1778710238000,-250.0,0.00013528,2]
[422213837,1778710238000,-161.92843279,0.0001344,2]
[422213843,1778710238000,-150.0,0.00013488,2]
[422213844,1778710238000,-1000.0,0.00013506,2]
[422213842,1778710238000,-247.04107685,0.00013488,2]
[422213845,1778710238000,-150.0,0.00013507,2]
[422213841,1778710238000,-150.0,0.00013488,2]
[422213840,1778710238000,-150.0,0.00013488,2]
[422213838,1778710238000,-161.92843278,0.0001344,2]
[422213836,1778710238000,-171.38078985,0.00013422,2]
[422213839,1778710238000,-245.13,0.00013476,2]
[422213835,1778710238000,-1686.07805425,0.00013422,2]
[422213833,1778710238000,-442162.57714214,0.00013407,2]
[422213834,1778710238000,-3452.1901618,0.00013422,2]
[422213832,1778710238000,-795.32864,0.00013407,2]
[422213859,1778710238000,-500.0,0.00013698,2]
[422213853,1778710238000,-1686.07805419,0.00013633,2]
[422213862,1778710238000,-500.0,0.00013698,2]
[422213874,1778710238000,-3452.19016171,0.00013915,2]
[422213863,1778710238000,-500.0,0.00013698,2]
[422213898,1778710238000,-500.0,0.00014018,2]
[422213864,1778710238000,-166.66,0.00013699,2]
[422213899,1778710238000,-500.0,0.00014018,2]
[422213896,1778710238000,-500.0,0.00014018,2]
[422213897,1778710238000,-500.0,0.00014018,2]
[422213895,1778710238000,-500.0,0.00014018,2]
[422213894,1778710238000,-500.0,0.00014018,2]
[422213892,1778710238000,-500.0,0.00014018,2]
[422213893,1778710238000,-500.0,0.00014018,2]
[422213888,1778710238000,-500.0,0.00014018,2]
[422213887,1778710238000,-500.0,0.00014018,2]
[422213891,1778710238000,-500.0,0.00014018,2]
[422213890,1778710238000,-500.0,0.00014018,2]
[422213886,1778710238000,-500.0,0.00014018,2]
[422213889,1778710238000,-500.0,0.00014018,2]
[422213900,1778710238000,-500.0,0.00014018,2]
[422213881,1778710238000,-500.0,0.00014018,2]
[422213885,1778710238000,-501.65246601,0.00014018,2]
[422213869,1778710238000,-3452.19016171,0.0001375,2]
[422213870,1778710238000,-171.38078984,0.0001375,2]
[422213871,1778710238000,-245.13,0.00013797,2]
[422213872,1778710238000,-1686.07805419,0.00013844,2]
[422213873,1778710238000,-172.44,0.00013886,2]
[422213868,1778710238000,-200.0,0.00013699,2]
[422213875,1778710238000,-171.38078984,0.00013915,2]
[422213877,1778710238000,-283.46,0.00013936,2]
[422213876,1778710238000,-500.0,0.00013915,2]
[422213878,1778710238000,-150.0,0.00013987,2]
[422213879,1778710238000,-250.0,0.00014,2]
[422213883,1778710238000,-500.0,0.00014018,2]
[422213941,1778710239000,-500.0,0.00014744,2]
[422213936,1778710239000,-1387.4076016,0.000147,2]
[422213940,1778710239000,-500.0,0.00014744,2]
[422213937,1778710239000,-415.0,0.00014729,2]
[422213934,1778710239000,-9054.42,0.00014685,2]
[422213935,1778710239000,-1686.07805419,0.00014689,2]
[422213933,1778710239000,-255.0,0.00014615,2]
[422213944,1778710239000,-500.0,0.00014744,2]
[422213932,1778710239000,-500.0,0.00014606,2]
[422213943,1778710239000,-500.0,0.00014744,2]
[422213938,1778710239000,-3452.19016171,0.00014736,2]
[422213939,1778710239000,-171.38078984,0.00014736,2]
[422213949,1778710239000,-500.0,0.00014744,2]
[422213945,1778710239000,-500.0,0.00014744,2]
[422213947,1778710239000,-500.0,0.00014744,2]
[422213948,1778710239000,-500.0,0.00014744,2]
[422213950,1778710239000,-500.0,0.00014744,2]
[422213952,1778710239000,-500.0,0.00014744,2]
[422213955,1778710239000,-500.0,0.00014744,2]
[422213946,1778710239000,-500.0,0.00014744,2]
[422213954,1778710239000,-500.0,0.00014744,2]
[422213953,1778710239000,-500.0,0.00014744,2]
[422213951,1778710239000,-500.0,0.00014744,2]
[422213957,1778710239000,-240.74100021,0.00014744,2]
[422213927,1778710239000,-150.0,0.00014487,2]
[422213956,1778710239000,-500.0,0.00014744,2]
[422213942,1778710239000,-500.0,0.00014744,2]
[422213929,1778710239000,-3452.19016171,0.00014572,2]
[422213913,1778710239000,-1686.07805419,0.00014267,2]
[422213924,1778710239000,-3452.19016171,0.00014407,2]
[422213959,1778710239000,-1000.0,0.00014751,2]
[422213907,1778710239000,-300.0,0.00014118,2]
[422213901,1778710239000,-167.0,0.00014018,2]
[422213908,1778710239000,-300.0,0.00014118,2]
[422213902,1778710239000,-166.47367607,0.00014018,2]
[422213903,1778710239000,-1686.07805419,0.00014055,2]
[422213905,1778710239000,-171.38078984,0.00014079,2]
[422213904,1778710239000,-3452.19016171,0.00014079,2]
[422213906,1778710239000,-245.13,0.00014118,2]
[422213915,1778710239000,-150.0,0.00014339,2]
[422213910,1778710239000,-2000.0,0.00014139,2]
[422213914,1778710239000,-167.4,0.00014331,2]
[422213911,1778710239000,-3452.19016171,0.00014243,2]
[422213912,1778710239000,-171.38078984,0.00014243,2]
[422213909,1778710239000,-300.0,0.00014118,2]
[422213918,1778710239000,-150.0,0.00014339,2]
[422213917,1778710239000,-150.0,0.00014339,2]
[422213916,1778710239000,-150.0,0.00014339,2]
[422213923,1778710239000,-166.66,0.00014384,2]
[422213919,1778710239000,-150.0,0.00014339,2]
[422213921,1778710239000,-150.0,0.00014339,2]
[422213930,1778710239000,-171.38078984,0.00014572,2]
[422213926,1778710239000,-1686.07805419,0.00014478,2]
[422213922,1778710239000,-250.0,0.00014339,2]
[422213925,1778710239000,-171.38078984,0.00014407,2]
[422213920,1778710239000,-150.0,0.00014339,2]
[422213931,1778710239000,-500.0,0.00014606,2]
[422213928,1778710239000,-350.0,0.00014524,2]
[422213958,1778710239000,-1680.0,0.00014746,2]
[422214005,1778710239000,-500.0,0.00014974,2]
[422213961,1778710239000,-1000.0,0.00014772,2]
[422213994,1778710239000,-184.0,0.00014905,2]
[422213996,1778710239000,-500.0,0.00014958,2]
[422214000,1778710239000,-601.0,0.00014959,2]
[422213998,1778710239000,-500.0,0.00014958,2]
[422214004,1778710239000,-500.0,0.00014974,2]
[422214001,1778710239000,-44166.0,0.00014959,2]
[422214003,1778710239000,-500.0,0.00014974,2]
[422214006,1778710239000,-185.68178906,0.00014974,2]
[422214002,1778710239000,-395.42560368,0.00014965,2]
[422213997,1778710239000,-500.0,0.00014958,2]
[422214007,1778710239000,-150.0,0.00014975,2]
[422214019,1778710239000,-1310.26867814,0.00014999,5]
[422213995,1778710239000,-546.0,0.00014913,2]
[422214009,1778710239000,-15814.0782682,0.00014975,2]
[422214010,1778710239000,-939173.3310632,0.00014975,2]
[422214018,1778710239000,-1310.26867815,0.00014999,5]
[422214013,1778710239000,-166.61686362,0.00014986,2]
[422214014,1778710239000,-209.49707429,0.00014986,2]
[422214017,1778710239000,-151.0,0.00014997,2]
[422214015,1778710239000,-395.42560368,0.0001499,2]
[422214012,1778710239000,-30744.459291,0.00014975,2]
[422214011,1778710239000,-26596.8861383,0.00014975,2]
[422214016,1778710239000,-395.42560368,0.0001499,2]
[422214021,1778710239000,-500.0,0.00014999,2]
[422214020,1778710239000,-500.0,0.00014999,2]
[422213960,1778710239000,-152.0,0.00014763,2]
[422214008,1778710239000,-2948.0,0.00014975,5]
[422213990,1778710239000,-198.69261774,0.000149,2]
[422213999,1778710239000,-500.0,0.00014958,2]
[422213986,1778710239000,-3452.19016171,0.000149,2]
[422213964,1778710239000,-340.0,0.00014778,2]
[422213962,1778710239000,-369.0,0.00014774,2]
[422213967,1778710239000,-546.0,0.00014847,2]
[422213966,1778710239000,-340.0,0.00014827,2]
[422213963,1778710239000,-1000.0,0.00014776,2]
[422213965,1778710239000,-152.0,0.00014795,2]
[422213979,1778710239000,-185.36869694,0.00014892,2]
[422213969,1778710239000,-398.63885,0.0001485,2]
[422213968,1778710239000,-398.63885,0.0001485,2]
[422213980,1778710239000,-546.0,0.00014896,2]
[422213991,1778710239000,-31196.8711306,0.000149,2]
[422213972,1778710239000,-353.64974189,0.00014875,2]
[422213973,1778710239000,-5000.0,0.00014875,2]
[422213976,1778710239000,-185.36869694,0.00014883,2]
[422213970,1778710239000,-398.63885,0.0001486,2]
[422213971,1778710239000,-185.36869697,0.00014875,2]
[422213978,1778710239000,-353.64974187,0.00014888,2]
[422213983,1778710239000,-288.81182778,0.00014899,2]
[422213982,1778710239000,-500.0,0.00014899,2]
[422213981,1778710239000,-500.0,0.00014899,2]
[422213992,1778710239000,-433.89294577,0.000149,2]
[422213984,1778710239000,-9113.5618,0.000149,2]
[422213993,1778710239000,-2045.55612377,0.000149,2]
[422213989,1778710239000,-171.38078984,0.000149,2]
[422213987,1778710239000,-353.64974187,0.000149,2]
[422213974,1778710239000,-2256.8907,0.00014875,2]
[422213988,1778710239000,-1686.07805419,0.000149,2]
[422213985,1778710239000,-185.36869694,0.000149,2]
[422214026,1778710240000,-300.0,0.00014999,2]
[422214024,1778710240000,-462.2867712,0.00014999,2]
[422214028,1778710240000,-300.0,0.00014999,2]
[422214033,1778710240000,-150.0,0.00015,2]
[422214032,1778710240000,-3510.0,0.00015,5]
[422214031,1778710240000,-324.23525548,0.00014999,2]
[422214034,1778710240000,-1188545.56747315,0.00015,2]
[422214023,1778710240000,-500.0,0.00014999,2]
[422214036,1778710240000,-2054.71908202,0.00015,2]
[422214025,1778710240000,-300.0,0.00014999,2]
[422214030,1778710240000,-300.0,0.00014999,2]
[422214037,1778710240000,-647.50803521,0.00015,2]
[422214035,1778710240000,-624.53735492,0.00015,2]
[422214040,1778710240000,-20175.42554435,0.00015,2]
[422214039,1778710240000,-374.64,0.00015,2]
[422214038,1778710240000,-940.2745123,0.00015,2]
[422214041,1778710240000,-80633.16401403,0.00015,2]
[422214022,1778710240000,-500.0,0.00014999,2]
[422214062,1778710332000,230.11743783,0.00013843,21]
[422214064,1778711248000,170.16362911,0.00027192,120]
[422214096,1778711432000,-583.33659564,0.00013407,2]
[422214115,1778711432000,-583.33659564,0.00013407,2]
[422214103,1778711432000,-583.33659564,0.00013407,2]
[422214101,1778711432000,-583.33659564,0.00013407,2]
[422214098,1778711432000,-583.33659564,0.00013407,2]
[422214097,1778711432000,-583.33659564,0.00013407,2]
[422214095,1778711432000,-583.33659564,0.00013407,2]
[422214109,1778711432000,-583.33659564,0.00013407,2]
[422214105,1778711432000,-583.33659564,0.00013407,2]
[422214107,1778711432000,-583.33659564,0.00013407,2]
[422214134,1778711432000,-583.33659564,0.00013407,2]
[422214111,1778711432000,-583.33659564,0.00013407,2]
[422214117,1778711432000,-583.33659564,0.00013407,2]
[422214119,1778711432000,-583.33659564,0.00013407,2]
[422214091,1778711432000,-583.33659564,0.00013407,2]
[422214130,1778711432000,-583.33659564,0.00013407,2]
[422214138,1778711432000,-583.33659564,0.00013407,2]
[422214142,1778711432000,-583.33659564,0.00013407,2]
[422214121,1778711432000,-583.33659564,0.00013407,2]
[422214123,1778711432000,-583.33659564,0.00013407,2]
[422214125,1778711432000,-583.33659564,0.00013407,2]
[422214145,1778711432000,-583.33659564,0.00013407,2]
[422214113,1778711432000,-583.33659564,0.00013407,2]
[422214093,1778711432000,-583.33659564,0.00013407,2]
[422214088,1778711432000,-583.33659564,0.00013407,2]
[422214089,1778711432000,-583.33659564,0.00013407,2]
[422214127,1778711432000,-583.33659564,0.00013407,2]
[422214069,1778711432000,-811.38375138,0.00013309,2]
[422214070,1778711432000,-228.46142884,0.00013309,2]
[422214072,1778711432000,-500.0,0.00013356,2]
[422214071,1778711432000,-346.8400236,0.00013333,2]
[422214073,1778711432000,-151.0,0.00013405,2]
[422214075,1778711432000,-150.0,0.00013406,2]
[422214074,1778711432000,-1200.0,0.00013406,2]
[422214076,1778711432000,-583.33659564,0.00013407,2]
[422214080,1778711432000,-583.33659564,0.00013407,2]
[422214092,1778711432000,-583.33659564,0.00013407,2]
[422214078,1778711432000,-583.33659564,0.00013407,2]
[422214081,1778711432000,-583.33659564,0.00013407,2]
[422214077,1778711432000,-583.33659564,0.00013407,2]
[422214079,1778711432000,-583.33659564,0.00013407,2]
[422214083,1778711432000,-583.33659564,0.00013407,2]
[422214085,1778711432000,-583.33659564,0.00013407,2]
[422214084,1778711432000,-583.33659564,0.00013407,2]
[422214094,1778711432000,-583.33659564,0.00013407,2]
[422214086,1778711432000,-583.33659564,0.00013407,2]
[422214087,1778711432000,-583.33659564,0.00013407,2]
[422214090,1778711432000,-583.33659564,0.00013407,2]
[422214082,1778711432000,-583.33659564,0.00013407,2]
[422214148,1778711432000,-583.33659564,0.00013407,2]
[422214186,1778711432000,-577.50322968,0.00013407,2]
[422214152,1778711432000,-583.33659564,0.00013407,2]
[422214188,1778711432000,-577.50322968,0.00013407,2]
[422214189,1778711432000,-577.50322968,0.00013407,2]
[422214191,1778711432000,-500.0,0.00013407,2]
[422214190,1778711432000,-577.50322968,0.00013407,2]
[422214192,1778711432000,-162.94424006,0.00013407,2]
[422214194,1778711432000,-313.57969783,0.00013407,2]
[422214193,1778711432000,-500.0,0.00013407,2]
[422214195,1778711432000,-563.06564893,0.00013407,2]
[422214197,1778711432000,-563.06564893,0.00013407,2]
[422214202,1778711432000,-563.06564893,0.00013407,2]
[422214185,1778711432000,-577.50322968,0.00013407,2]
[422214199,1778711432000,-563.06564893,0.00013407,2]
[422214201,1778711432000,-563.06564893,0.00013407,2]
[422214204,1778711432000,-563.06564893,0.00013407,2]
[422214198,1778711432000,-563.06564893,0.00013407,2]
[422214203,1778711432000,-563.06564893,0.00013407,2]
[422214207,1778711432000,-13246.59041199,0.00013408,2]
[422214206,1778711432000,-563.06564893,0.00013407,2]
[422214209,1778711432000,-561.55493499,0.00013408,2]
[422214210,1778711432000,-671.18141117,0.00013408,2]
[422214208,1778711432000,-20523.17652289,0.00013408,2]
[422214150,1778711432000,-583.33659564,0.00013407,2]
[422214200,1778711432000,-563.06564893,0.00013407,2]
[422214187,1778711432000,-577.50322968,0.00013407,2]
[422214205,1778711432000,-563.06564893,0.00013407,2]
[422214211,1778711432000,-2448.0892418,0.00013408,2]
[422214196,1778711432000,-563.06564893,0.00013407,2]
[422214156,1778711432000,-583.33659564,0.00013407,2]
[422214158,1778711432000,-583.33659564,0.00013407,2]
[422214164,1778711432000,-577.50322968,0.00013407,2]
[422214166,1778711432000,-577.50322968,0.00013407,2]
[422214170,1778711432000,-577.50322968,0.00013407,2]
[422214167,1778711432000,-577.50322968,0.00013407,2]
[422214160,1778711432000,-577.50322968,0.00013407,2]
[422214171,1778711432000,-577.50322968,0.00013407,2]
[422214168,1778711432000,-577.50322968,0.00013407,2]
[422214172,1778711432000,-577.50322968,0.00013407,2]
[422214162,1778711432000,-577.50322968,0.00013407,2]
[422214175,1778711432000,-577.50322968,0.00013407,2]
[422214183,1778711432000,-577.50322968,0.00013407,2]
[422214174,1778711432000,-577.50322968,0.00013407,2]
[422214181,1778711432000,-577.50322968,0.00013407,2]
[422214179,1778711432000,-577.50322968,0.00013407,2]
[422214180,1778711432000,-577.50322968,0.00013407,2]
[422214173,1778711432000,-577.50322968,0.00013407,2]
[422214184,1778711432000,-577.50322968,0.00013407,2]
[422214178,1778711432000,-577.50322968,0.00013407,2]
[422214182,1778711432000,-577.50322968,0.00013407,2]
[422214176,1778711432000,-577.50322968,0.00013407,2]
[422214177,1778711432000,-577.50322968,0.00013407,2]
[422214240,1778711438000,-500.0,0.00013698,2]
[422214237,1778711438000,-500.0,0.00013698,2]
[422214236,1778711438000,-500.0,0.00013698,2]
[422214239,1778711438000,-500.0,0.00013698,2]
[422214234,1778711438000,-500.0,0.00013698,2]
[422214241,1778711438000,-500.0,0.00013698,2]
[422214246,1778711438000,-500.0,0.00013698,2]
[422214243,1778711438000,-500.0,0.00013698,2]
[422214242,1778711438000,-500.0,0.00013698,2]
[422214244,1778711438000,-500.0,0.00013698,2]
[422214248,1778711438000,-500.0,0.00013698,2]
[422214232,1778711438000,-500.0,0.00013698,2]
[422214249,1778711438000,-500.0,0.00013698,2]
[422214245,1778711438000,-500.0,0.00013698,2]
[422214233,1778711438000,-500.0,0.00013698,2]
[422214226,1778711438000,-1039.84518017,0.00013663,2]
[422214231,1778711438000,-500.0,0.00013698,2]
[422214251,1778711438000,-500.0,0.00013698,2]
[422214225,1778711438000,-24326.6,0.00013619,2]
[422214218,1778711438000,-514302.86277716,0.00013408,2]
[422214220,1778711438000,-178.93,0.00013438,2]
[422214219,1778711438000,-165.65,0.00013409,2]
[422214223,1778711438000,-209.49707429,0.00013488,2]
[422214235,1778711438000,-256.48,0.00013698,2]
[422214221,1778711438000,-1039.84518017,0.00013486,2]
[422214224,1778711438000,-236.21,0.00013496,2]
[422214227,1778711438000,-2000.0,0.00013666,2]
[422214230,1778711438000,-500.0,0.00013698,2]
[422214228,1778711438000,-500.0,0.00013698,2]
[422214229,1778711438000,-250.49009514,0.00013698,2]
[422214238,1778711438000,-507.77368398,0.00013698,2]
[422214222,1778711438000,-166.61686362,0.00013488,2]
[422214250,1778711438000,-500.0,0.00013698,2]
[422214263,1778711438000,-566.98307162,0.0001437,2]
[422214253,1778711438000,-500.0,0.00013698,2]
[422214271,1778711438000,-2500.0,0.00014454,2]
[422214279,1778711438000,-9999.99,0.00014504,2]
[422214277,1778711438000,-7326.86,0.00014497,2]
[422214281,1778711438000,-24393.94,0.00014504,2]
[422214283,1778711438000,-4644.21,0.00014504,2]
[422214284,1778711438000,-999.99,0.00014504,2]
[422214280,1778711438000,-150.99,0.00014504,2]
[422214287,1778711438000,-566.98307162,0.00014546,2]
[422214285,1778711438000,-9999.99,0.00014504,2]
[422214288,1778711438000,-1039.84518017,0.00014546,2]
[422214290,1778711438000,-7300.0,0.000146,5]
[422214291,1778711438000,-6111.0,0.00014605,2]
[422214292,1778711438000,-250.0,0.0001464,2]
[422214247,1778711438000,-500.0,0.00013698,2]
[422214286,1778711438000,-255.0,0.00014519,2]
[422214274,1778711438000,-1400.72151442,0.00014454,2]
[422214289,1778711438000,-150.0,0.000146,2]
[422214282,1778711438000,-299.99,0.00014504,2]
[422214278,1778711438000,-36800.0,0.000145,5]
[422214265,1778711438000,-1039.84518017,0.0001437,2]
[422214267,1778711438000,-29400.0,0.000144,5]
[422214269,1778711438000,-2500.0,0.00014454,2]
[422214254,1778711438000,-1039.84518017,0.00013839,2]
[422214255,1778711438000,-1039.84518017,0.00014016,2]
[422214252,1778711438000,-507.15627863,0.00013698,2]
[422214256,1778711438000,-7300.0,0.000141,5]
[422214259,1778711438000,-14700.0,0.000142,5]
[422214258,1778711438000,-1039.84518017,0.00014193,2]
[422214273,1778711438000,-2500.0,0.00014454,2]
[422214275,1778711438000,-2500.0,0.00014454,2]
[422214261,1778711438000,-22100.0,0.000143,5]
[422214276,1778711438000,-300.0,0.00014454,2]
[422214321,1778711439000,-566.98307162,0.000149,2]
[422214333,1778711439000,-1000.0,0.00014955,2]
[422214332,1778711439000,-369.0,0.00014945,2]
[422214322,1778711439000,-2671.7760529,0.000149,2]
[422214318,1778711439000,-166.77522326,0.0001489,2]
[422214320,1778711439000,-1273.205,0.00014899,2]
[422214323,1778711439000,-1039.84518017,0.000149,2]
[422214315,1778711439000,-386.0,0.00014877,2]
[422214319,1778711439000,-386.0,0.00014891,2]
[422214324,1778711439000,-2315.0,0.000149,2]
[422214329,1778711439000,-152.0,0.00014901,2]
[422214328,1778711439000,-198.90203311,0.000149,2]
[422214326,1778711439000,-7300.0,0.000149,5]
[422214334,1778711439000,-500.0,0.00014958,2]
[422214325,1778711439000,-386.0,0.000149,2]
[422214331,1778711439000,-152.0,0.00014935,2]
[422214330,1778711439000,-340.0,0.00014901,2]
[422214336,1778711439000,-365.07072707,0.00014974,2]
[422214337,1778711439000,-340.0,0.00014981,2]
[422214316,1778711439000,-1000.0,0.0001488,2]
[422214327,1778711439000,-225.39312712,0.000149,2]
[422214317,1778711439000,-200.0,0.0001488,2]
[422214299,1778711439000,-258.0,0.00014759,2]
[422214311,1778711439000,-150.0,0.00014818,2]
[422214338,1778711439000,-6245.461035,0.00014986,2]
[422214294,1778711439000,-924.93840107,0.000147,2]
[422214293,1778711439000,-329.49494965,0.0001464,2]
[422214295,1778711439000,-7300.0,0.000147,5]
[422214296,1778711439000,-566.98307162,0.00014723,2]
[422214298,1778711439000,-1639.0,0.00014747,2]
[422214297,1778711439000,-1039.84518017,0.00014723,2]
[422214301,1778711439000,-500.0,0.0001476,2]
[422214300,1778711439000,-500.0,0.0001476,2]
[422214314,1778711439000,-217.0,0.0001487,2]
[422214304,1778711439000,-500.0,0.0001476,2]
[422214302,1778711439000,-500.0,0.0001476,2]
[422214303,1778711439000,-500.0,0.0001476,2]
[422214307,1778711439000,-340.0,0.00014784,2]
[422214313,1778711439000,-503.0,0.00014856,2]
[422214306,1778711439000,-190.0,0.00014782,2]
[422214308,1778711439000,-6111.0,0.00014789,2]
[422214309,1778711439000,-5000.0,0.000148,2]
[422214312,1778711439000,-340.0,0.0001485,2]
[422214310,1778711439000,-7300.0,0.000148,5]
[422214305,1778711439000,-446.6236523,0.0001476,2]
[422214335,1778711439000,-340.0,0.00014964,2]
[422214342,1778711439000,-5702.4512588,0.00014986,2]
[422214345,1778711439000,-263.61706913,0.0001499,2]
[422214370,1778711439000,-192.97352566,0.00014999,2]
[422214363,1778711439000,-256.09571324,0.00014999,2]
[422214366,1778711439000,-500.0,0.00014999,2]
[422214364,1778711439000,-500.0,0.00014999,2]
[422214368,1778711439000,-500.0,0.00014999,2]
[422214373,1778711439000,-500.0,0.00014999,2]
[422214371,1778711439000,-500.0,0.00014999,2]
[422214372,1778711439000,-500.0,0.00014999,2]
[422214375,1778711439000,-300.0,0.00014999,2]
[422214369,1778711439000,-512.63037488,0.00014999,2]
[422214374,1778711439000,-500.0,0.00014999,2]
[422214384,1778711439000,-2613.0,0.00015,5]
[422214382,1778711439000,-300.0,0.00014999,2]
[422214377,1778711439000,-300.0,0.00014999,2]
[422214378,1778711439000,-300.0,0.00014999,2]
[422214380,1778711439000,-324.23525548,0.00014999,2]
[422214376,1778711439000,-300.0,0.00014999,2]
[422214379,1778711439000,-322.50177111,0.00014999,2]
[422214383,1778711439000,-3255.0,0.00015,5]
[422214381,1778711439000,-300.0,0.00014999,2]
[422214385,1778711439000,-150.0,0.00015,2]
[422214367,1778711439000,-366.2643348,0.00014999,2]
[422214365,1778711439000,-500.0,0.00014999,2]
[422214361,1778711439000,-462.2867712,0.00014999,2]
[422214344,1778711439000,-263.61706913,0.0001499,2]
[422214343,1778711439000,-263.61706913,0.0001499,2]
[422214339,1778711439000,-45047.1909287,0.00014986,2]
[422214346,1778711439000,-340.0,0.00014994,2]
[422214340,1778711439000,-201361.5472146,0.00014986,2]
[422214386,1778711439000,-177355.83484591,0.00015,2]
[422214359,1778711439000,-500.0,0.00014999,2]
[422214348,1778711439000,-340.0,0.00014998,2]
[422214358,1778711439000,-500.0,0.00014999,2]
[422214347,1778711439000,-151.0,0.00014997,2]
[422214351,1778711439000,-500.0,0.00014999,2]
[422214350,1778711439000,-1310.26867815,0.00014999,5]
[422214349,1778711439000,-1310.26867814,0.00014999,5]
[422214355,1778711439000,-500.0,0.00014999,2]
[422214357,1778711439000,-500.0,0.00014999,2]
[422214353,1778711439000,-500.0,0.00014999,2]
[422214352,1778711439000,-500.0,0.00014999,2]
[422214354,1778711439000,-500.0,0.00014999,2]
[422214356,1778711439000,-500.0,0.00014999,2]
[422214360,1778711439000,-500.0,0.00014999,2]
[422214362,1778711439000,-500.0,0.00014999,2]
[422214341,1778711439000,-3390.5852759,0.00014986,2]
[422214390,1778711440000,-902102.43111909,0.00015,2]
[422214389,1778711440000,-37227.8791092,0.00015,2]
[422214391,1778711440000,-205375.79535986,0.00015,2]
[422214405,1778711443000,-616.62560071,0.000147,2]
[422214406,1778711443000,-12652.39405839,0.00015,2]
[422214404,1778711443000,-2698.68,0.00012757,2]
[422214537,1778711842000,152.65,7.119e-05,2]
[422214539,1778712197000,3388.38,0.00027397,120]
[422214541,1778712563000,-5.473,0.00011593,2]
[422214540,1778712563000,-152.65,0.0001054,2]
[422214562,1778712632000,-1200.0,0.00013207,2]
[422214563,1778712632000,-368066.1189,0.00013208,2]
[422214564,1778712632000,-150.0,0.00013307,2]
[422214566,1778712632000,-2000.0,0.00013357,2]
[422214567,1778712632000,-519.92259008,0.00013395,2]
[422214569,1778712632000,-500.0,0.00013698,2]
[422214571,1778712632000,-500.0,0.00013698,2]
[422214573,1778712632000,-500.0,0.00013698,2]
[422214568,1778712632000,-519.92259008,0.00013583,2]
[422214565,1778712632000,-500.0,0.00013356,2]
[422214572,1778712632000,-500.0,0.00013698,2]
[422214578,1778712632000,-500.0,0.00013698,2]
[422214576,1778712632000,-500.0,0.00013698,2]
[422214574,1778712632000,-500.0,0.00013698,2]
[422214575,1778712632000,-500.0,0.00013698,2]
[422214570,1778712632000,-500.0,0.00013698,2]
[422214577,1778712632000,-500.0,0.00013698,2]
[422214558,1778712632000,-500.0,0.00013207,2]
[422214559,1778712632000,-500.0,0.00013207,2]
[422214545,1778712632000,-409.70574832,0.00013207,2]
[422214544,1778712632000,-244.527,0.00011593,2]
[422214546,1778712632000,-500.0,0.00013207,2]
[422214548,1778712632000,-500.0,0.00013207,2]
[422214549,1778712632000,-500.0,0.00013207,2]